[Event "Early-Titled-Tuesday-Blitz-November-28-2023"]
[Site "Chess.com"]
[Date "2023.11.28"]
[Round "11"]
[White "Ajedrez_con_German"]
[Black "ATM622"]
[Result "0-1"]
[WhiteElo "2602"]
[BlackElo "2481"]
[TimeControl "180+1"]
[EndTime "10:12:49 PST"]
[Termination "ATM622 won on time"]

1. Nf3 {[%clk 0:02:58.1]} 1... Nf6 {[%clk 0:02:58.9]} 2. e3 {[%clk 0:02:59]}
2... d5 {[%clk 0:02:57.5]} 3. d4 {[%clk 0:02:59.9]} 3... Bf5 {[%clk 0:02:56.9]}
4. Bd3 {[%clk 0:03:00.2]} 4... Bxd3 {[%clk 0:02:56.7]} 5. Qxd3 {[%clk
0:03:01.1]} 5... e6 {[%clk 0:02:55.2]} 6. O-O {[%clk 0:03:01.7]} 6... c6 {[%clk
0:02:55.2]} 7. Nbd2 {[%clk 0:03:02.2]} 7... Nbd7 {[%clk 0:02:51.3]} 8. c3 {[%clk
0:03:02.8]} 8... Bd6 {[%clk 0:02:49.3]} 9. e4 {[%clk 0:03:03.1]} 9... dxe4
{[%clk 0:02:48.7]} 10. Nxe4 {[%clk 0:03:04]} 10... Nxe4 {[%clk 0:02:49.2]} 11.
Qxe4 {[%clk 0:03:04.7]} 11... Nf6 {[%clk 0:02:49.7]} 12. Qe2 {[%clk 0:03:04.9]}
12... Qc7 {[%clk 0:02:44.9]} 13. Bg5 {[%clk 0:03:03.7]} 13... O-O-O {[%clk
0:02:32.7]} 14. Rfe1 {[%clk 0:03:03.7]} 14... h6 {[%clk 0:02:30]} 15. Bh4 {[%clk
0:03:01.9]} 15... g5 {[%clk 0:02:27.8]} 16. Bg3 {[%clk 0:03:01.9]} 16... Kb8
{[%clk 0:02:27.6]} 17. Be5 {[%clk 0:02:54.9]} 17... Bxe5 {[%clk 0:02:25.6]} 18.
Qxe5 {[%clk 0:02:55.2]} 18... Qxe5 {[%clk 0:02:21.4]} 19. Nxe5 {[%clk
0:02:56.1]} 19... Rh7 {[%clk 0:02:18.8]} 20. Re2 {[%clk 0:02:56.5]} 20... h5
{[%clk 0:02:16.9]} 21. Rae1 {[%clk 0:02:56.6]} 21... h4 {[%clk 0:02:14.9]} 22.
h3 {[%clk 0:02:56.2]} 22... Nd5 {[%clk 0:02:14]} 23. Nd3 {[%clk 0:02:52.3]}
23... Kc7 {[%clk 0:02:12.3]} 24. f4 {[%clk 0:02:43.6]} 24... gxf4 {[%clk
0:02:09.5]} 25. Rf2 {[%clk 0:02:43.1]} 25... Rg7 {[%clk 0:02:04.7]} 26. Nxf4
{[%clk 0:02:43.1]} 26... Rdg8 {[%clk 0:01:58.5]} 27. Nh5 {[%clk 0:02:19]} 27...
Rg5 {[%clk 0:01:56.2]} 28. Rxf7+ {[%clk 0:02:02.3]} 28... Kb6 {[%clk 0:01:53.7]}
29. Nf4 {[%clk 0:01:33.3]} 29... Nxf4 {[%clk 0:01:52.5]} 30. Rxf4 {[%clk
0:01:34.2]} 30... Rxg2+ {[%clk 0:01:53.1]} 31. Kh1 {[%clk 0:01:34.9]} 31... Rxb2
{[%clk 0:01:50.7]} 32. Rg1 {[%clk 0:01:34.9]} 32... Rxg1+ {[%clk 0:01:47.1]} 33.
Kxg1 {[%clk 0:01:35.7]} 33... Rxa2 {[%clk 0:01:47.7]} 34. Rxh4 {[%clk 0:01:36]}
34... a5 {[%clk 0:01:47.7]} 35. Rh8 {[%clk 0:01:35.3]} 35... Rc2 {[%clk
0:01:42.4]} 36. h4 {[%clk 0:01:34.5]} 36... a4 {[%clk 0:01:40.6]} 37. Ra8 {[%clk
0:01:31.4]} 37... Kb5 {[%clk 0:01:38.1]} 38. h5 {[%clk 0:01:30.1]} 38... Rxc3
{[%clk 0:01:38.3]} 39. Kg2 {[%clk 0:01:30.7]} 39... Rc2+ {[%clk 0:01:21.1]} 40.
Kg3 {[%clk 0:01:30.8]} 40... Rc1 {[%clk 0:01:18.2]} 41. Kg2 {[%clk 0:01:31]}
41... Rc4 {[%clk 0:01:06.6]} 42. Kg3 {[%clk 0:01:21.8]} 42... Rxd4 {[%clk
0:01:05]} 43. h6 {[%clk 0:01:21.7]} 43... Rd7 {[%clk 0:00:50.6]} 44. Kf4 {[%clk
0:01:21.1]} 44... Kb4 {[%clk 0:00:45.8]} 45. Kg5 {[%clk 0:01:15.5]} 45... Rh7
{[%clk 0:00:41.3]} 46. Kg6 {[%clk 0:01:15.1]} 46... Rxh6+ {[%clk 0:00:41.6]} 47.
Kxh6 {[%clk 0:01:16]} 47... c5 {[%clk 0:00:40.1]} 48. Kg5 {[%clk 0:01:16.9]}
48... e5 {[%clk 0:00:34.2]} 49. Kf5 {[%clk 0:01:16.8]} 49... c4 {[%clk
0:00:34.6]} 50. Ke4 {[%clk 0:01:17]} 50... b5 {[%clk 0:00:33.4]} 51. Ke3 {[%clk
0:01:16.6]} 51... Kb3 {[%clk 0:00:28.5]} 52. Kd2 {[%clk 0:01:16]} 52... Kb2
{[%clk 0:00:27.1]} 53. Rb8 {[%clk 0:01:12.6]} 53... c3+ {[%clk 0:00:07.6]} 54.
Ke2 {[%clk 0:01:13.2]} 54... a3 {[%clk 0:00:03.3]} 55. Rxb5+ {[%clk 0:01:12.6]}
55... Kc2 {[%clk 0:00:03.6]} 56. Ra5 {[%clk 0:01:07.4]} 56... Kb3 {[%clk
0:00:03.6]} 57. Kd1 {[%clk 0:01:04]} 57... e4 {[%clk 0:00:03.4]} 58. Kc1 {[%clk
0:00:58.5]} 58... e3 {[%clk 0:00:03.4]} 59. Rb5+ {[%clk 0:00:50.7]} 59... Kc4
{[%clk 0:00:03.7]} 60. Rb8 {[%clk 0:00:42]} 60... e2 {[%clk 0:00:03.6]} 61. Re8
{[%clk 0:00:41.1]} 61... a2 {[%clk 0:00:03.5]} 62. Rc8+ {[%clk 0:00:40.9]} 62...
Kd5 {[%clk 0:00:03.4]} 63. Rd8+ {[%clk 0:00:41.5]} 63... Kc6 {[%clk 0:00:03.2]}
64. Re8 {[%clk 0:00:41.9]} 64... a1=Q+ {[%clk 0:00:03.1]} 0-1

[Event "Early-Titled-Tuesday-Blitz-November-28-2023"]
[Site "Chess.com"]
[Date "2023.11.28"]
[Round "11"]
[White "whitemirrorninja"]
[Black "IljaZaragatski"]
[Result "1-0"]
[WhiteElo "2526"]
[BlackElo "2601"]
[TimeControl "180+1"]
[EndTime "10:12:51 PST"]
[Termination "whitemirrorninja won on time"]

1. e4 {[%clk 0:02:57.1]} 1... d5 {[%clk 0:02:56]} 2. exd5 {[%clk 0:02:56.5]}
2... Qxd5 {[%clk 0:02:56.9]} 3. Nc3 {[%clk 0:02:54.5]} 3... Qd8 {[%clk
0:02:56.7]} 4. Bc4 {[%clk 0:02:53.2]} 4... Nf6 {[%clk 0:02:55.8]} 5. d3 {[%clk
0:02:53.2]} 5... c5 {[%clk 0:02:55.4]} 6. Nf3 {[%clk 0:02:53.1]} 6... Nc6 {[%clk
0:02:54.6]} 7. h3 {[%clk 0:02:51.4]} 7... e6 {[%clk 0:02:54.2]} 8. Bf4 {[%clk
0:02:49.8]} 8... a6 {[%clk 0:02:53.7]} 9. a4 {[%clk 0:02:48.6]} 9... Be7 {[%clk
0:02:53.3]} 10. Ne5 {[%clk 0:02:46.6]} 10... Nxe5 {[%clk 0:02:51.7]} 11. Bxe5
{[%clk 0:02:47.5]} 11... O-O {[%clk 0:02:51.3]} 12. Qf3 {[%clk 0:02:46]} 12...
Ne8 {[%clk 0:02:16.5]} 13. O-O {[%clk 0:02:42.5]} 13... Bd6 {[%clk 0:02:15.8]}
14. Rfe1 {[%clk 0:02:36]} 14... Qc7 {[%clk 0:02:13.2]} 15. Bxd6 {[%clk
0:02:32.3]} 15... Nxd6 {[%clk 0:02:14.1]} 16. Bb3 {[%clk 0:02:32]} 16... Bd7
{[%clk 0:02:10.9]} 17. Qg3 {[%clk 0:02:28.1]} 17... Rac8 {[%clk 0:02:05.1]} 18.
a5 {[%clk 0:02:00.2]} 18... Nf5 {[%clk 0:02:03.7]} 19. Qxc7 {[%clk 0:01:59.4]}
19... Rxc7 {[%clk 0:02:04.6]} 20. Ne2 {[%clk 0:01:56]} 20... Bb5 {[%clk
0:02:00.7]} 21. g4 {[%clk 0:01:45.9]} 21... Ne7 {[%clk 0:01:51.9]} 22. Nc3
{[%clk 0:01:45]} 22... Bc6 {[%clk 0:01:47.9]} 23. f4 {[%clk 0:01:42.8]} 23...
Rd8 {[%clk 0:01:42.8]} 24. Ne4 {[%clk 0:01:38.5]} 24... Bxe4 {[%clk 0:01:41.8]}
25. Rxe4 {[%clk 0:01:39.2]} 25... h6 {[%clk 0:01:35.5]} 26. Kf2 {[%clk 0:01:36]}
26... Nc6 {[%clk 0:01:25.8]} 27. h4 {[%clk 0:01:14]} 27... Nd4 {[%clk
0:01:24.5]} 28. Ba4 {[%clk 0:01:14.5]} 28... g6 {[%clk 0:01:01.1]} 29. c3 {[%clk
0:01:03.7]} 29... Nc6 {[%clk 0:01:00.9]} 30. Bxc6 {[%clk 0:01:03.5]} 30... Rxc6
{[%clk 0:01:01.3]} 31. Ke3 {[%clk 0:01:00.6]} 31... Kf8 {[%clk 0:00:52.5]} 32.
g5 {[%clk 0:00:59.1]} 32... hxg5 {[%clk 0:00:50.1]} 33. hxg5 {[%clk 0:01:00]}
33... Ke7 {[%clk 0:00:50.1]} 34. Rh1 {[%clk 0:00:55.7]} 34... Rcd6 {[%clk
0:00:48.7]} 35. d4 {[%clk 0:00:40.9]} 35... cxd4+ {[%clk 0:00:46.6]} 36. Rxd4
{[%clk 0:00:41.8]} 36... Rxd4 {[%clk 0:00:46.2]} 37. cxd4 {[%clk 0:00:42.7]}
37... Rd5 {[%clk 0:00:46.1]} 38. Rc1 {[%clk 0:00:33.7]} 38... Kd7 {[%clk
0:00:45.7]} 39. Rc5 {[%clk 0:00:23.7]} 39... Rd6 {[%clk 0:00:38.4]} 40. Ke4
{[%clk 0:00:19]} 40... b6 {[%clk 0:00:36.6]} 41. axb6 {[%clk 0:00:18.2]} 41...
Rxb6 {[%clk 0:00:37.5]} 42. Ra5 {[%clk 0:00:10.6]} 42... Kd6 {[%clk 0:00:33.5]}
43. Ra2 {[%clk 0:00:07.7]} 43... Kc6 {[%clk 0:00:32.5]} 44. Ke5 {[%clk
0:00:06.2]} 44... Kb5 {[%clk 0:00:32]} 45. Kf6 {[%clk 0:00:04.7]} 45... Rb7
{[%clk 0:00:31.9]} 46. Ra3 {[%clk 0:00:04.9]} 46... Kb4 {[%clk 0:00:29.6]} 47.
Rxa6 {[%clk 0:00:05.2]} 47... Kb3 {[%clk 0:00:27.8]} 48. Rd6 {[%clk 0:00:05.2]}
48... Kxb2 {[%clk 0:00:27.6]} 49. Rd8 {[%clk 0:00:03.8]} 49... Kc3 {[%clk
0:00:27.2]} 50. Rf8 {[%clk 0:00:04.5]} 50... Kxd4 {[%clk 0:00:27.5]} 51. Rxf7
{[%clk 0:00:05.1]} 51... Rb6 {[%clk 0:00:21.2]} 52. Kxg6 {[%clk 0:00:03.9]}
52... Ke4 {[%clk 0:00:09.2]} 53. Kh7 {[%clk 0:00:03.2]} 53... Rb1 {[%clk
0:00:03.1]} 54. g6 {[%clk 0:00:03.7]} 54... Rh1+ {[%clk 0:00:03.1]} 55. Kg7
{[%clk 0:00:04.3]} 55... Rf1 {[%clk 0:00:03.5]} 56. Rf6 {[%clk 0:00:04.8]} 56...
Kd5 {[%clk 0:00:02.8]} 57. Kf7 {[%clk 0:00:05.2]} 57... Rg1 {[%clk 0:00:02.1]}
58. g7 {[%clk 0:00:05.7]} 58... e5 {[%clk 0:00:02.5]} 59. fxe5 {[%clk
0:00:05.6]} 59... Kxe5 {[%clk 0:00:02.8]} 60. Rg6 {[%clk 0:00:05.9]} 60... Rf1+
{[%clk 0:00:02.5]} 61. Ke7 {[%clk 0:00:06.2]} 61... Ra1 {[%clk 0:00:02.1]} 62.
Re6+ {[%clk 0:00:05.7]} 62... Kf5 {[%clk 0:00:01.8]} 63. g8=Q {[%clk 0:00:05]}
63... Ra7+ {[%clk 0:00:01.1]} 64. Kd6 {[%clk 0:00:05.6]} 64... Ra6+ {[%clk
0:00:01.4]} 65. Kd5 {[%clk 0:00:06]} 65... Ra5+ {[%clk 0:00:01.9]} 66. Kd4
{[%clk 0:00:06.3]} 66... Ra4+ {[%clk 0:00:02.5]} 67. Kc3 {[%clk 0:00:06.6]}
67... Ra3+ {[%clk 0:00:02.8]} 68. Kb2 {[%clk 0:00:07]} 68... Ra2+ {[%clk
0:00:03]} 69. Kxa2 {[%clk 0:00:06.9]} 1-0

[Event "Early-Titled-Tuesday-Blitz-November-28-2023"]
[Site "Chess.com"]
[Date "2023.11.28"]
[Round "11"]
[White "kuli4ik"]
[Black "Leonid_Starozhilov"]
[Result "1/2-1/2"]
[WhiteElo "2873"]
[BlackElo "2756"]
[TimeControl "180+1"]
[EndTime "10:12:55 PST"]
[Termination "Game drawn - insufficient material"]

1. Nf3 {[%clk 0:03:00]} 1... Nf6 {[%clk 0:02:59.1]} 2. g3 {[%clk 0:02:59.9]}
2... g6 {[%clk 0:02:59.7]} 3. b3 {[%clk 0:03:00]} 3... Bg7 {[%clk 0:02:59.7]} 4.
Bb2 {[%clk 0:03:00.9]} 4... O-O {[%clk 0:03:00.3]} 5. Bg2 {[%clk 0:03:00.8]}
5... c5 {[%clk 0:03:00.2]} 6. c4 {[%clk 0:03:00.5]} 6... Nc6 {[%clk 0:02:59.3]}
7. O-O {[%clk 0:02:59.7]} 7... d5 {[%clk 0:02:56.2]} 8. cxd5 {[%clk 0:02:59.5]}
8... Qxd5 {[%clk 0:02:57.1]} 9. Ne5 {[%clk 0:02:58.8]} 9... Qd6 {[%clk
0:02:51.6]} 10. Nxc6 {[%clk 0:02:57.8]} 10... bxc6 {[%clk 0:02:52.4]} 11. Na3
{[%clk 0:02:57.8]} 11... Be6 {[%clk 0:02:43.5]} 12. Rc1 {[%clk 0:02:56.8]} 12...
Bd5 {[%clk 0:02:43.5]} 13. d3 {[%clk 0:02:55.8]} 13... a5 {[%clk 0:02:40.2]} 14.
Nc4 {[%clk 0:02:55]} 14... Qc7 {[%clk 0:02:27]} 15. Ne3 {[%clk 0:02:51.4]} 15...
Bxg2 {[%clk 0:01:52.6]} 16. Kxg2 {[%clk 0:02:52.3]} 16... a4 {[%clk 0:01:36.5]}
17. bxa4 {[%clk 0:02:46.9]} 17... Nd5 {[%clk 0:01:22]} 18. Bxg7 {[%clk
0:02:42.8]} 18... Kxg7 {[%clk 0:01:11.3]} 19. Rxc5 {[%clk 0:02:41.9]} 19... Qa7
{[%clk 0:01:10.2]} 20. Qc1 {[%clk 0:02:25.4]} 20... Qxa4 {[%clk 0:01:07.8]} 21.
Nxd5 {[%clk 0:02:16.3]} 21... cxd5 {[%clk 0:01:07.3]} 22. Rxd5 {[%clk
0:02:14.3]} 22... Qxa2 {[%clk 0:01:05.1]} 23. Re5 {[%clk 0:02:09.2]} 23... Rfc8
{[%clk 0:00:44.7]} 24. Qe3 {[%clk 0:02:06.5]} 24... e6 {[%clk 0:00:43.5]} 25. h4
{[%clk 0:02:06.2]} 25... h5 {[%clk 0:00:38.3]} 26. Rc5 {[%clk 0:01:54.7]} 26...
Rxc5 {[%clk 0:00:35.5]} 27. Qxc5 {[%clk 0:01:55.6]} 27... Qxe2 {[%clk
0:00:34.5]} 28. Qd4+ {[%clk 0:01:55]} 28... Kg8 {[%clk 0:00:34]} 29. Rc1 {[%clk
0:01:53]} 29... Qg4 {[%clk 0:00:27.8]} 30. Qd7 {[%clk 0:01:38.1]} 30... Qf5
{[%clk 0:00:25.5]} 31. Rc4 {[%clk 0:01:35.5]} 31... Ra5 {[%clk 0:00:20.4]} 32.
Qe8+ {[%clk 0:01:30.3]} 32... Kg7 {[%clk 0:00:20.4]} 33. Rc8 {[%clk 0:01:30.1]}
33... Qd5+ {[%clk 0:00:15.9]} 34. Kh2 {[%clk 0:01:29.2]} 34... Kf6 {[%clk
0:00:14.9]} 35. Rc7 {[%clk 0:01:19.5]} 35... e5 {[%clk 0:00:11.9]} 36. Rc6+
{[%clk 0:01:08.3]} 36... Kg7 {[%clk 0:00:12.1]} 37. Rc8 {[%clk 0:01:05.3]} 37...
Kf6 {[%clk 0:00:12.5]} 38. Qh8+ {[%clk 0:00:58.8]} 38... Kf5 {[%clk 0:00:12.8]}
39. Qh6 {[%clk 0:00:57.3]} 39... f6 {[%clk 0:00:13]} 40. Qc1 {[%clk 0:00:35.6]}
40... Ra2 {[%clk 0:00:11.9]} 41. Rc2 {[%clk 0:00:27.4]} 41... Rxc2 {[%clk
0:00:12.2]} 42. Qxc2 {[%clk 0:00:27.4]} 42... Ke6 {[%clk 0:00:10.3]} 43. Kg1
{[%clk 0:00:21]} 43... Qd7 {[%clk 0:00:09.1]} 44. Kf1 {[%clk 0:00:18.8]} 44...
Kf7 {[%clk 0:00:09.4]} 45. Ke2 {[%clk 0:00:18.8]} 45... Kg7 {[%clk 0:00:10]} 46.
Ke3 {[%clk 0:00:18.8]} 46... Qa7+ {[%clk 0:00:10]} 47. Ke2 {[%clk 0:00:18.5]}
47... Qb7 {[%clk 0:00:10.2]} 48. Qc4 {[%clk 0:00:18.2]} 48... Qa7 {[%clk
0:00:10.2]} 49. Kf3 {[%clk 0:00:17.5]} 49... Qb7+ {[%clk 0:00:10.4]} 50. Ke3
{[%clk 0:00:16.6]} 50... Qa7+ {[%clk 0:00:10.7]} 51. d4 {[%clk 0:00:15.8]} 51...
exd4+ {[%clk 0:00:10.7]} 52. Qxd4 {[%clk 0:00:15.8]} 52... Qa3+ {[%clk
0:00:10.9]} 53. Ke4 {[%clk 0:00:14.8]} 53... Qe7+ {[%clk 0:00:10.9]} 54. Kd5
{[%clk 0:00:14.9]} 54... Qd7+ {[%clk 0:00:10.8]} 55. Kc4 {[%clk 0:00:14.3]}
55... Qc6+ {[%clk 0:00:10.7]} 56. Kd3 {[%clk 0:00:14.4]} 56... Qf3+ {[%clk
0:00:10.6]} 57. Kd2 {[%clk 0:00:14.4]} 57... Qb7 {[%clk 0:00:09.1]} 58. Ke2
{[%clk 0:00:14.3]} 58... Qe7+ {[%clk 0:00:09]} 59. Kf3 {[%clk 0:00:14.2]} 59...
Kf7 {[%clk 0:00:09.5]} 60. Qd5+ {[%clk 0:00:14]} 60... Qe6 {[%clk 0:00:09.3]}
61. Qxe6+ {[%clk 0:00:13.9]} 61... Kxe6 {[%clk 0:00:10]} 62. Ke4 {[%clk
0:00:14.5]} 62... Kd6 {[%clk 0:00:10.2]} 63. f4 {[%clk 0:00:11.1]} 63... Ke7
{[%clk 0:00:06.8]} 64. f5 {[%clk 0:00:03.7]} 64... gxf5+ {[%clk 0:00:07.3]} 65.
Kxf5 {[%clk 0:00:03.9]} 65... Kf7 {[%clk 0:00:07.9]} 66. g4 {[%clk 0:00:04.4]}
66... hxg4 {[%clk 0:00:08.1]} 67. Kxg4 {[%clk 0:00:05.3]} 67... Kg7 {[%clk
0:00:08.6]} 68. Kf5 {[%clk 0:00:05.5]} 68... Kh6 {[%clk 0:00:08.9]} 69. h5
{[%clk 0:00:06.2]} 69... Kxh5 {[%clk 0:00:09.7]} 70. Kxf6 {[%clk 0:00:07]}
1/2-1/2

[Event "Early-Titled-Tuesday-Blitz-November-28-2023"]
[Site "Chess.com"]
[Date "2023.11.28"]
[Round "11"]
[White "Msb2"]
[Black "Rakhmanov_Aleksandr"]
[Result "0-1"]
[WhiteElo "3036"]
[BlackElo "2882"]
[TimeControl "180+1"]
[EndTime "10:13:06 PST"]
[Termination "Rakhmanov_Aleksandr won by resignation"]

1. d4 {[%clk 0:03:00.9]} 1... Nf6 {[%clk 0:02:59]} 2. c4 {[%clk 0:03:01.4]} 2...
d6 {[%clk 0:02:59.4]} 3. Nf3 {[%clk 0:03:01.5]} 3... g6 {[%clk 0:02:59.2]} 4.
Nc3 {[%clk 0:03:02.2]} 4... Bf5 {[%clk 0:02:59.8]} 5. d5 {[%clk 0:03:02.9]} 5...
e5 {[%clk 0:02:59.1]} 6. dxe6 {[%clk 0:03:03.1]} 6... Bxe6 {[%clk 0:02:59.7]} 7.
Nd4 {[%clk 0:03:04]} 7... Bg7 {[%clk 0:03:00.1]} 8. Nxe6 {[%clk 0:03:03.5]} 8...
fxe6 {[%clk 0:03:01]} 9. g3 {[%clk 0:03:04.2]} 9... Nbd7 {[%clk 0:02:59.6]} 10.
Bg2 {[%clk 0:03:04.7]} 10... Rb8 {[%clk 0:03:00.2]} 11. O-O {[%clk 0:03:04.8]}
11... O-O {[%clk 0:03:00.9]} 12. Qd2 {[%clk 0:03:03.6]} 12... Nc5 {[%clk
0:02:39.6]} 13. Qc2 {[%clk 0:02:58.6]} 13... a6 {[%clk 0:02:34.6]} 14. Rb1
{[%clk 0:02:54.6]} 14... Ng4 {[%clk 0:02:34.3]} 15. b4 {[%clk 0:02:45]} 15...
Nd7 {[%clk 0:02:32.8]} 16. Bb2 {[%clk 0:02:42.4]} 16... Qe7 {[%clk 0:02:22.9]}
17. Rbd1 {[%clk 0:02:39.2]} 17... Rf7 {[%clk 0:02:13.3]} 18. h3 {[%clk
0:02:36.3]} 18... Nge5 {[%clk 0:02:10.1]} 19. Ne4 {[%clk 0:02:34.8]} 19... Nc6
{[%clk 0:02:04.5]} 20. Bxg7 {[%clk 0:02:33.5]} 20... Rxg7 {[%clk 0:02:04.1]} 21.
b5 {[%clk 0:02:18.9]} 21... Nce5 {[%clk 0:02:03.1]} 22. f4 {[%clk 0:02:17]}
22... Nf7 {[%clk 0:02:03.4]} 23. bxa6 {[%clk 0:02:13.9]} 23... bxa6 {[%clk
0:02:04.3]} 24. Rb1 {[%clk 0:02:14.2]} 24... Rf8 {[%clk 0:01:55.1]} 25. Rb7
{[%clk 0:02:12.8]} 25... Nc5 {[%clk 0:01:55.4]} 26. Nxc5 {[%clk 0:02:12.8]}
26... dxc5 {[%clk 0:01:56.3]} 27. Qc3 {[%clk 0:02:00.2]} 27... Nd6 {[%clk
0:01:53.3]} 28. Ra7 {[%clk 0:02:00.4]} 28... g5 {[%clk 0:01:53.5]} 29. fxg5
{[%clk 0:01:49.1]} 29... Rxf1+ {[%clk 0:01:46.5]} 30. Bxf1 {[%clk 0:01:48.2]}
30... Qxg5 {[%clk 0:01:38.3]} 31. Ra8+ {[%clk 0:01:46.3]} 31... Kf7 {[%clk
0:01:38.6]} 32. Qf3+ {[%clk 0:01:41]} 32... Nf5 {[%clk 0:01:35.8]} 33. g4 {[%clk
0:01:35.5]} 33... h5 {[%clk 0:01:33.8]} 34. Bg2 {[%clk 0:00:44.7]} 34... hxg4
{[%clk 0:01:19.3]} 35. hxg4 {[%clk 0:00:45.6]} 35... Qxg4 {[%clk 0:01:10]} 36.
Qxg4 {[%clk 0:00:46.5]} 36... Rxg4 {[%clk 0:01:10.5]} 37. Kf2 {[%clk 0:00:47.4]}
37... Rxc4 {[%clk 0:00:49.3]} 38. Rxa6 {[%clk 0:00:47.7]} 38... Ke7 {[%clk
0:00:42.6]} 39. Bh3 {[%clk 0:00:42.7]} 39... Nd6 {[%clk 0:00:39]} 40. Bg2 {[%clk
0:00:42.1]} 40... Rc2 {[%clk 0:00:34.3]} 41. a4 {[%clk 0:00:42.2]} 41... c4
{[%clk 0:00:07.8]} 42. a5 {[%clk 0:00:39.6]} 42... Ra2 {[%clk 0:00:07.4]} 43.
Ke3 {[%clk 0:00:36.3]} 43... c3 {[%clk 0:00:07.4]} 44. Rc6 {[%clk 0:00:36]}
44... Kd7 {[%clk 0:00:06.5]} 45. Rxc3 {[%clk 0:00:27.7]} 45... Rxa5 {[%clk
0:00:06.9]} 46. Bc6+ {[%clk 0:00:28.4]} 46... Ke7 {[%clk 0:00:07]} 47. Bf3
{[%clk 0:00:28.7]} 47... c5 {[%clk 0:00:06.5]} 48. Rc1 {[%clk 0:00:21.3]} 48...
Kf6 {[%clk 0:00:06.9]} 49. Kf2 {[%clk 0:00:17]} 49... Ke5 {[%clk 0:00:07.1]} 50.
Rh1 {[%clk 0:00:15.8]} 50... Ra2 {[%clk 0:00:06]} 51. Rh5+ {[%clk 0:00:16]}
51... Nf5 {[%clk 0:00:06.5]} 52. Bg4 {[%clk 0:00:10.9]} 52... Ra4 {[%clk
0:00:04.4]} 53. Bxf5 {[%clk 0:00:10.7]} 53... Rf4+ {[%clk 0:00:04.6]} 54. Ke3
{[%clk 0:00:11.3]} 54... Rxf5 {[%clk 0:00:04.8]} 55. Rh8 {[%clk 0:00:11.9]}
55... Kd5 {[%clk 0:00:03.9]} 56. Rd8+ {[%clk 0:00:11.8]} 56... Kc4 {[%clk
0:00:03.8]} 57. Ke4 {[%clk 0:00:12.3]} 57... Rd5 {[%clk 0:00:02.8]} 58. Re8
{[%clk 0:00:12.2]} 58... Rd6 {[%clk 0:00:03.3]} 59. Ke5 {[%clk 0:00:12.3]} 59...
Rc6 {[%clk 0:00:02.3]} 60. e4 {[%clk 0:00:11.8]} 60... Kd3 {[%clk 0:00:02.2]}
61. Rd8+ {[%clk 0:00:12.2]} 61... Ke3 {[%clk 0:00:02.1]} 62. Rh8 {[%clk
0:00:11.5]} 62... c4 {[%clk 0:00:02.6]} 63. Rh3+ {[%clk 0:00:12.4]} 63... Kd2
{[%clk 0:00:03.1]} 64. Kd4 {[%clk 0:00:13.3]} 64... c3 {[%clk 0:00:03.3]} 65.
Rh2+ {[%clk 0:00:13]} 65... Kc1 {[%clk 0:00:03.7]} 66. Kd3 {[%clk 0:00:13.9]}
66... c2 {[%clk 0:00:04.2]} 67. Rh8 {[%clk 0:00:05.7]} 67... Kb2 {[%clk
0:00:04.2]} 68. Rb8+ {[%clk 0:00:06.6]} 68... Ka3 {[%clk 0:00:04.4]} 69. Ra8+
{[%clk 0:00:07.2]} 69... Kb4 {[%clk 0:00:05.1]} 70. Rb8+ {[%clk 0:00:08.1]}
70... Ka5 {[%clk 0:00:05.7]} 71. Ra8+ {[%clk 0:00:08.6]} 71... Kb6 {[%clk
0:00:06.3]} 72. Ra1 {[%clk 0:00:08.7]} 72... c1=Q {[%clk 0:00:06.3]} 73. Rxc1
{[%clk 0:00:09.6]} 73... Rxc1 {[%clk 0:00:06.6]} 74. Kd4 {[%clk 0:00:10.5]}
74... Rc5 {[%clk 0:00:07.1]} 75. Ke3 {[%clk 0:00:10.9]} 75... e5 {[%clk
0:00:07.6]} 76. Kf3 {[%clk 0:00:11.2]} 76... Kc6 {[%clk 0:00:08.5]} 77. Kg4
{[%clk 0:00:12.1]} 77... Kd6 {[%clk 0:00:09.4]} 78. Kf5 {[%clk 0:00:13]} 78...
Rc4 {[%clk 0:00:09.9]} 79. Kf6 {[%clk 0:00:13.9]} 79... Rxe4 {[%clk 0:00:10.6]}
80. Kf5 {[%clk 0:00:14.8]} 80... Rf4+ {[%clk 0:00:11.5]} 81. Kg5 {[%clk
0:00:15.7]} 81... Rf1 {[%clk 0:00:11.9]} 0-1